[Event "Titled Tuesday Blitz August 22 Early 2023"]
[White "SmirnovAlexandrA"]
[Black "Maksimovic, Bojan"]
[BlackFideId "14408120"]
[WhiteElo "2652"]
[BlackElo "2863"]
[Result "1/2-1/2"]
[Round "6"]
[TimeControl "180+1"]
[Date "2023.08.22"]
[WhiteClock "0:00:18"]
[BlackClock "0:00:14"]
[Board "32"]

1. e4 {[%clk 0:03:00]}  g6 {[%clk 0:02:55]} 2. d4 {[%clk 0:02:58]}  Nf6 {[%clk 0:02:56]} 3. Nc3 {[%clk 0:02:58]}  d5 {[%clk 0:02:56]} 4. exd5 {[%clk 0:02:52]}  Nxd5 {[%clk 0:02:57]} 5. Nf3 {[%clk 0:02:45]}  Nxc3 {[%clk 0:02:54]} 6. bxc3 {[%clk 0:02:46]}  Bg7 {[%clk 0:02:54]} 7. Bd3 {[%clk 0:02:44]}  c5 {[%clk 0:02:55]} 8. Rb1 {[%clk 0:02:43]}  Nc6 {[%clk 0:02:55]} 9. O-O {[%clk 0:02:42]}  O-O {[%clk 0:02:42]} 10. Re1 {[%clk 0:02:28]}  Bg4 {[%clk 0:02:20]} 11. h3 {[%clk 0:02:14]}  Bxf3 {[%clk 0:02:15]} 12. Qxf3 {[%clk 0:02:15]}  cxd4 {[%clk 0:02:16]} 13. Rxb7 {[%clk 0:02:05]}  Ne5 {[%clk 0:02:15]} 14. Qg3 {[%clk 0:01:55]}  Nxd3 {[%clk 0:02:09]} 15. Qxd3 {[%clk 0:01:55]}  dxc3 {[%clk 0:01:36]} 16. Rd7 {[%clk 0:01:38]}  Qa5 {[%clk 0:01:31]} 17. Rexe7 {[%clk 0:01:31]}  Qxa2 {[%clk 0:01:24]} 18. Kh2 {[%clk 0:01:23]}  a5 {[%clk 0:01:21]} 19. Be3 {[%clk 0:01:05]}  a4 {[%clk 0:00:27]} 20. Ra7 {[%clk 0:00:54]}  Bf6 {[%clk 0:00:16]} 21. Red7 {[%clk 0:00:41]}  Kg7 {[%clk 0:00:17]} 22. Bd4 {[%clk 0:00:38]}  Bxd4 {[%clk 0:00:12]} 23. Qxd4+ {[%clk 0:00:38]}  Kg8 {[%clk 0:00:13]} 24. Qxc3 {[%clk 0:00:30]}  a3 {[%clk 0:00:13]} 25. Qf3 {[%clk 0:00:16]}  Rxa7 {[%clk 0:00:06]} 26. Rxa7 {[%clk 0:00:17]}  Qxc2 {[%clk 0:00:06]} 27. Rxa3 {[%clk 0:00:16]}  Qc7+ {[%clk 0:00:06]} 28. Qg3 {[%clk 0:00:14]}  Qc5 {[%clk 0:00:07]} 29. Rc3 {[%clk 0:00:14]}  Qd4 {[%clk 0:00:07]} 30. Qe3 {[%clk 0:00:14]}  Qd6+ {[%clk 0:00:08]} 31. Qg3 {[%clk 0:00:14]}  Qe6 {[%clk 0:00:08]} 32. Qe3 {[%clk 0:00:14]}  Qf6 {[%clk 0:00:09]} 33. Qf3 {[%clk 0:00:15]}  Qe6 {[%clk 0:00:09]} 34. Qe3 {[%clk 0:00:15]}  Qd6+ {[%clk 0:00:10]} 35. Qg3 {[%clk 0:00:15]}  Qd7 {[%clk 0:00:10]} 36. Qd3 {[%clk 0:00:15]}  Qe7 {[%clk 0:00:10]} 37. Qe3 {[%clk 0:00:15]}  Qf6 {[%clk 0:00:11]} 38. Qf3 {[%clk 0:00:15]}  Qg7 {[%clk 0:00:12]} 39. g3 {[%clk 0:00:13]}  h6 {[%clk 0:00:12]} 40. Kg2 {[%clk 0:00:13]}  Qe5 {[%clk 0:00:12]} 41. Re3 {[%clk 0:00:13]}  Qd4 {[%clk 0:00:12]} 42. Rd3 {[%clk 0:00:13]}  Qc5 {[%clk 0:00:12]} 43. Rc3 {[%clk 0:00:14]}  Qg5 {[%clk 0:00:10]} 44. Rd3 {[%clk 0:00:10]}  h5 {[%clk 0:00:10]} 45. Qd5 {[%clk 0:00:10]}  Qf6 {[%clk 0:00:10]} 46. Rf3 {[%clk 0:00:10]}  Qg7 {[%clk 0:00:10]} 47. h4 {[%clk 0:00:10]}  Kh7 {[%clk 0:00:10]} 48. Qd7 {[%clk 0:00:10]}  Kg8 {[%clk 0:00:10]} 49. Qd5 {[%clk 0:00:10]}  Kh7 {[%clk 0:00:10]} 50. Qd7 {[%clk 0:00:10]}  Kh8 {[%clk 0:00:11]} 51. Qd5 {[%clk 0:00:10]}  Kg8 {[%clk 0:00:11]} 52. Qd7 {[%clk 0:00:10]}  Qe5 {[%clk 0:00:12]} 53. Qd3 {[%clk 0:00:09]}  Re8 {[%clk 0:00:11]} 54. Qd7 {[%clk 0:00:08]}  Re7 {[%clk 0:00:12]} 55. Qd8+ {[%clk 0:00:09]}  Kg7 {[%clk 0:00:12]} 56. Qd3 {[%clk 0:00:09]}  Qc7 {[%clk 0:00:08]} 57. Qc3+ {[%clk 0:00:09]}  Kh7 {[%clk 0:00:08]} 58. Qxc7 {[%clk 0:00:09]}  Rxc7 {[%clk 0:00:08]} 59. Rd3 {[%clk 0:00:10]}  Kg7 {[%clk 0:00:09]} 60. Kf3 {[%clk 0:00:10]}  Kf6 {[%clk 0:00:09]} 61. Re3 {[%clk 0:00:10]}  Kf5 {[%clk 0:00:10]} 62. Rd3 {[%clk 0:00:10]}  f6 {[%clk 0:00:11]} 63. Rd5+ {[%clk 0:00:10]}  Ke6 {[%clk 0:00:11]} 64. Rd3 {[%clk 0:00:11]}  Rc5 {[%clk 0:00:12]} 65. Re3+ {[%clk 0:00:12]}  Kf5 {[%clk 0:00:12]} 66. Ra3 {[%clk 0:00:12]}  g5 {[%clk 0:00:13]} 67. hxg5 {[%clk 0:00:11]}  Kxg5 {[%clk 0:00:13]} 68. Ra4 {[%clk 0:00:11]}  f5 {[%clk 0:00:14]} 69. Kg2 {[%clk 0:00:12]}  Rc3 {[%clk 0:00:14]} 70. Rb4 {[%clk 0:00:12]}  Rd3 {[%clk 0:00:15]} 71. Ra4 {[%clk 0:00:12]}  Rd5 {[%clk 0:00:15]} 72. Rb4 {[%clk 0:00:13]}  Rd6 {[%clk 0:00:15]} 73. Rc4 {[%clk 0:00:13]}  Re6 {[%clk 0:00:15]} 74. Rb4 {[%clk 0:00:13]}  Re4 {[%clk 0:00:16]} 75. Rxe4 {[%clk 0:00:13]}  fxe4 {[%clk 0:00:16]} 76. f3 {[%clk 0:00:14]}  Kf5 {[%clk 0:00:09]} 77. fxe4+ {[%clk 0:00:13]}  Kxe4 {[%clk 0:00:09]} 78. Kh3 {[%clk 0:00:14]}  Kf5 {[%clk 0:00:09]} 79. Kh4 {[%clk 0:00:14]}  Kg6 {[%clk 0:00:10]} 80. g4 {[%clk 0:00:15]}  Kh6 {[%clk 0:00:11]} 81. gxh5 {[%clk 0:00:13]}  Kg7 {[%clk 0:00:11]} 82. Kg5 {[%clk 0:00:14]}  Kh7 {[%clk 0:00:12]} 83. h6 {[%clk 0:00:15]}  Kh8 {[%clk 0:00:12]} 84. Kh5 {[%clk 0:00:16]}  Kh7 {[%clk 0:00:13]} 85. Kg5 {[%clk 0:00:16]}  Kg8 {[%clk 0:00:13]} 86. Kg6 {[%clk 0:00:17]}  Kh8 {[%clk 0:00:14]} 87. h7 {[%clk 0:00:18]} 1/2-1/2


[Site "https://www.chess.com"]

[Event "Titled Tuesday Blitz August 22 Early 2023"]
[White "Aaditya Dhingra"]
[Black "Timofeev, Artyom"]
[WhiteFideId "25678191"]
[BlackFideId "4140419"]
[WhiteElo "2649"]
[BlackElo "2847"]
[Result "0-1"]
[Round "6"]
[TimeControl "180+1"]
[Date "2023.08.22"]
[WhiteClock "0:00:12"]
[BlackClock "0:00:15"]
[Board "34"]

1. d4 {[%clk 0:03:00]}  e6 {[%clk 0:02:59]} 2. c4 {[%clk 0:03:00]}  Bb4+ {[%clk 0:02:58]} 3. Bd2 {[%clk 0:02:59]}  Qe7 {[%clk 0:02:58]} 4. Nc3 {[%clk 0:02:57]}  Nf6 {[%clk 0:02:56]} 5. Nf3 {[%clk 0:02:55]}  O-O {[%clk 0:02:55]} 6. g3 {[%clk 0:02:52]}  d6 {[%clk 0:02:54]} 7. Bg2 {[%clk 0:02:52]}  e5 {[%clk 0:02:53]} 8. O-O {[%clk 0:02:47]}  Bxc3 {[%clk 0:02:48]} 9. Bxc3 {[%clk 0:02:46]}  e4 {[%clk 0:02:48]} 10. Ne1 {[%clk 0:02:42]}  d5 {[%clk 0:02:47]} 11. Nc2 {[%clk 0:02:38]}  Re8 {[%clk 0:02:42]} 12. Ne3 {[%clk 0:02:26]}  c6 {[%clk 0:02:42]} 13. Rc1 {[%clk 0:02:22]}  Be6 {[%clk 0:02:41]} 14. b3 {[%clk 0:02:17]}  Nbd7 {[%clk 0:02:37]} 15. Qd2 {[%clk 0:02:17]}  Nf8 {[%clk 0:02:07]} 16. Bb4 {[%clk 0:02:15]}  Qd7 {[%clk 0:02:08]} 17. cxd5 {[%clk 0:02:10]}  cxd5 {[%clk 0:02:06]} 18. Rc2 {[%clk 0:02:03]}  Ng6 {[%clk 0:02:04]} 19. Rfc1 {[%clk 0:02:02]}  Rac8 {[%clk 0:02:04]} 20. a4 {[%clk 0:01:57]}  h5 {[%clk 0:02:00]} 21. Rxc8 {[%clk 0:01:54]}  Rxc8 {[%clk 0:02:00]} 22. Rxc8+ {[%clk 0:01:53]}  Qxc8 {[%clk 0:02:00]} 23. Qc3 {[%clk 0:01:53]}  Qd7 {[%clk 0:01:56]} 24. h4 {[%clk 0:01:51]}  Ne7 {[%clk 0:01:40]} 25. Qc5 {[%clk 0:01:41]}  Nc6 {[%clk 0:01:38]} 26. Ba3 {[%clk 0:01:40]}  Kh7 {[%clk 0:01:36]} 27. Nc2 {[%clk 0:01:39]}  Bh3 {[%clk 0:01:30]} 28. Bh1 {[%clk 0:01:36]}  Qg4 {[%clk 0:01:15]} 29. Kh2 {[%clk 0:01:23]}  Bf1 {[%clk 0:01:12]} 30. Ne3 {[%clk 0:01:16]}  Qxe2 {[%clk 0:01:11]} 31. Qc2 {[%clk 0:01:03]}  Qxc2 {[%clk 0:01:06]} 32. Nxc2 {[%clk 0:01:03]}  Bd3 {[%clk 0:01:06]} 33. Ne3 {[%clk 0:00:52]}  Nxd4 {[%clk 0:01:04]} 34. Bb2 {[%clk 0:00:47]}  Nxb3 {[%clk 0:00:50]} 35. Bxf6 {[%clk 0:00:46]}  gxf6 {[%clk 0:00:50]} 36. Nxd5 {[%clk 0:00:47]}  f5 {[%clk 0:00:47]} 37. Bg2 {[%clk 0:00:44]}  b6 {[%clk 0:00:42]} 38. Bh3 {[%clk 0:00:42]}  Nd4 {[%clk 0:00:30]} 39. Ne7 {[%clk 0:00:41]}  Bc2 {[%clk 0:00:21]} 40. Nxf5 {[%clk 0:00:33]}  Nxf5 {[%clk 0:00:20]} 41. Bxf5+ {[%clk 0:00:32]}  Kg7 {[%clk 0:00:21]} 42. Bd7 {[%clk 0:00:26]}  Kf6 {[%clk 0:00:21]} 43. g4 {[%clk 0:00:26]}  hxg4 {[%clk 0:00:20]} 44. Kg3 {[%clk 0:00:26]}  Bd1 {[%clk 0:00:21]} 45. Kf4 {[%clk 0:00:25]}  Bf3 {[%clk 0:00:20]} 46. h5 {[%clk 0:00:21]}  Kg7 {[%clk 0:00:19]} 47. Kg5 {[%clk 0:00:19]}  f6+ {[%clk 0:00:19]} 48. Kf5 {[%clk 0:00:20]}  Kh6 {[%clk 0:00:17]} 49. Be8 {[%clk 0:00:20]}  e3 {[%clk 0:00:15]} 50. fxe3 {[%clk 0:00:12]}  g3 {[%clk 0:00:15]} 0-1


[Site "https://www.chess.com"]

[Event "Titled Tuesday Blitz August 22 Early 2023"]
[White "Hoang, Thi Bao Tram"]
[Black "Naroditsky, Daniel"]
[WhiteFideId "12401102"]
[BlackFideId "2026961"]
[WhiteElo "2695"]
[BlackElo "3187"]
[Result "0-1"]
[Round "6"]
[TimeControl "180+1"]
[Date "2023.08.22"]
[WhiteClock "0:00:00"]
[BlackClock "0:00:05"]
[Board "35"]

1. d4 {[%clk 0:02:59]}  Nf6 {[%clk 0:03:00]} 2. Nf3 {[%clk 0:02:58]}  g6 {[%clk 0:03:00]} 3. g3 {[%clk 0:02:58]}  Bg7 {[%clk 0:03:01]} 4. Bg2 {[%clk 0:02:58]}  O-O {[%clk 0:03:02]} 5. O-O {[%clk 0:02:58]}  d6 {[%clk 0:03:02]} 6. a4 {[%clk 0:02:57]}  a5 {[%clk 0:03:03]} 7. c3 {[%clk 0:02:55]}  Nc6 {[%clk 0:02:47]} 8. Na3 {[%clk 0:02:47]}  Bf5 {[%clk 0:02:36]} 9. Re1 {[%clk 0:02:41]}  Qd7 {[%clk 0:02:23]} 10. Nb5 {[%clk 0:02:26]}  Be4 {[%clk 0:02:21]} 11. Bf4 {[%clk 0:02:05]}  Nd5 {[%clk 0:02:11]} 12. Bd2 {[%clk 0:01:55]}  Nb6 {[%clk 0:01:51]} 13. Nh4 {[%clk 0:01:49]}  Bxg2 {[%clk 0:01:50]} 14. Nxg2 {[%clk 0:01:50]}  e5 {[%clk 0:01:48]} 15. dxe5 {[%clk 0:01:41]}  Nxe5 {[%clk 0:01:46]} 16. Qc2 {[%clk 0:01:32]}  c6 {[%clk 0:01:39]} 17. Nd4 {[%clk 0:01:30]}  d5 {[%clk 0:01:39]} 18. b3 {[%clk 0:01:25]}  Nc8 {[%clk 0:01:36]} 19. Rad1 {[%clk 0:01:24]}  Nd6 {[%clk 0:01:36]} 20. Bf4 {[%clk 0:01:12]}  Rfe8 {[%clk 0:01:36]} 21. Qc1 {[%clk 0:01:04]}  Qh3 {[%clk 0:01:31]} 22. f3 {[%clk 0:01:00]}  h6 {[%clk 0:01:09]} 23. Be3 {[%clk 0:00:54]}  g5 {[%clk 0:01:04]} 24. Bf2 {[%clk 0:00:51]}  Ne4 {[%clk 0:00:51]} 25. Be3 {[%clk 0:00:16]}  Rad8 {[%clk 0:00:49]} 26. Rf1 {[%clk 0:00:12]}  Nd6 {[%clk 0:00:33]} 27. Rf2 {[%clk 0:00:12]}  Re7 {[%clk 0:00:25]} 28. Kh1 {[%clk 0:00:09]}  Rde8 {[%clk 0:00:17]} 29. Rdf1 {[%clk 0:00:08]}  Ne4 {[%clk 0:00:10]} 30. fxe4 {[%clk 0:00:04]}  Ng4 {[%clk 0:00:11]} 31. Nf3 {[%clk 0:00:04]}  dxe4 {[%clk 0:00:08]} 32. Nf4 {[%clk 0:00:03]}  gxf4 {[%clk 0:00:07]} 33. Ng1 {[%clk 0:00:03]}  Qh5 {[%clk 0:00:03]} 34. Bxf4 {[%clk 0:00:01]}  Nxf2+ {[%clk 0:00:04]} 35. Rxf2 {[%clk 0:00:01]}  e3 {[%clk 0:00:04]} 36. Rf3 {[%clk 0:00:00]}  Qg6 {[%clk 0:00:05]} 0-1


[Site "https://www.chess.com"]

[Event "Titled Tuesday Blitz August 22 Early 2023"]
[White "Van Foreest, Jorden"]
[Black "Hua, Lefong"]
[WhiteFideId "1039784"]
[BlackFideId "2602253"]
[WhiteElo "2990"]
[BlackElo "2687"]
[Result "1-0"]
[Round "6"]
[TimeControl "180+1"]
[Date "2023.08.22"]
[WhiteClock "0:02:38"]
[BlackClock "0:01:19"]
[Board "37"]

1. b3 {[%clk 0:02:58]}  Nf6 {[%clk 0:02:59]} 2. Bb2 {[%clk 0:02:59]}  g6 {[%clk 0:03:00]} 3. Nf3 {[%clk 0:02:57]}  Bg7 {[%clk 0:03:00]} 4. g3 {[%clk 0:02:58]}  O-O {[%clk 0:03:00]} 5. Bg2 {[%clk 0:02:58]}  c5 {[%clk 0:03:00]} 6. c4 {[%clk 0:02:57]}  Nc6 {[%clk 0:03:00]} 7. O-O {[%clk 0:02:57]}  d6 {[%clk 0:03:01]} 8. d4 {[%clk 0:02:57]}  Ne4 {[%clk 0:03:01]} 9. e3 {[%clk 0:02:56]}  Bg4 {[%clk 0:02:29]} 10. h3 {[%clk 0:02:53]}  Bd7 {[%clk 0:02:19]} 11. Qc2 {[%clk 0:02:52]}  Bf5 {[%clk 0:02:09]} 12. g4 {[%clk 0:02:50]}  Nb4 {[%clk 0:02:02]} 13. Qe2 {[%clk 0:02:38]}  Bd7 {[%clk 0:01:51]} 14. a3 {[%clk 0:02:38]}  Nc6 {[%clk 0:01:50]} 15. d5 {[%clk 0:02:37]}  Na5 {[%clk 0:01:42]} 16. Bxg7 {[%clk 0:02:37]}  Kxg7 {[%clk 0:01:19]} 17. b4 {[%clk 0:02:38]} 1-0


[Site "https://www.chess.com"]

[Event "Titled Tuesday Blitz August 22 Early 2023"]
[White "Gubajdullin, Alexei"]
[Black "Tahbaz, Arash"]
[WhiteFideId "4141202"]
[BlackFideId "12528846"]
[WhiteElo "2668"]
[BlackElo "2905"]
[Result "1-0"]
[Round "6"]
[TimeControl "180+1"]
[Date "2023.08.22"]
[WhiteClock "0:01:19"]
[BlackClock "0:00:00"]
[Board "39"]

1. d4 {[%clk 0:03:00]}  g6 {[%clk 0:02:59]} 2. Nf3 {[%clk 0:03:00]}  Bg7 {[%clk 0:02:58]} 3. Bf4 {[%clk 0:02:59]}  d6 {[%clk 0:02:58]} 4. e3 {[%clk 0:03:00]}  Nf6 {[%clk 0:02:59]} 5. Be2 {[%clk 0:03:00]}  O-O {[%clk 0:03:00]} 6. O-O {[%clk 0:03:00]}  Nfd7 {[%clk 0:02:59]} 7. h3 {[%clk 0:03:00]}  e5 {[%clk 0:02:59]} 8. Bh2 {[%clk 0:03:01]}  Nc6 {[%clk 0:03:00]} 9. c4 {[%clk 0:03:00]}  f5 {[%clk 0:03:01]} 10. Nc3 {[%clk 0:03:00]}  g5 {[%clk 0:03:00]} 11. c5 {[%clk 0:02:59]}  e4 {[%clk 0:02:46]} 12. cxd6 {[%clk 0:02:55]}  cxd6 {[%clk 0:01:52]} 13. Nd2 {[%clk 0:02:54]}  Nf6 {[%clk 0:01:45]} 14. d5 {[%clk 0:02:41]}  Ne5 {[%clk 0:01:43]} 15. Bxe5 {[%clk 0:02:35]}  dxe5 {[%clk 0:01:44]} 16. Nc4 {[%clk 0:02:35]}  Re8 {[%clk 0:01:33]} 17. d6 {[%clk 0:02:34]}  f4 {[%clk 0:01:17]} 18. Nxe4 {[%clk 0:02:33]}  Nxe4 {[%clk 0:01:01]} 19. Qd5+ {[%clk 0:02:32]}  Be6 {[%clk 0:01:02]} 20. Qxe4 {[%clk 0:02:32]}  b5 {[%clk 0:01:01]} 21. d7 {[%clk 0:01:51]}  Qxd7 {[%clk 0:00:57]} 22. Rad1 {[%clk 0:01:50]}  Qc7 {[%clk 0:00:54]} 23. Nd6 {[%clk 0:01:50]}  Red8 {[%clk 0:00:54]} 24. Nxb5 {[%clk 0:01:47]}  Qc5 {[%clk 0:00:52]} 25. Rc1 {[%clk 0:01:41]}  Bd5 {[%clk 0:00:49]} 26. Qf5 {[%clk 0:01:35]}  Qb6 {[%clk 0:00:04]} 27. Nc7 {[%clk 0:01:35]}  fxe3 {[%clk 0:00:02]} 28. Nxd5 {[%clk 0:01:31]}  Rxd5 {[%clk 0:00:01]} 29. Bc4 {[%clk 0:01:29]}  exf2+ {[%clk 0:00:00]} 30. Qxf2 {[%clk 0:01:19]} 1-0


[Site "https://www.chess.com"]

[Event "Titled Tuesday Blitz August 22 Early 2023"]
[White "Elsa167"]
[Black "Ovchinnikov, Vsevolod"]
[BlackFideId "24176842"]
[WhiteElo "2863"]
[BlackElo "2655"]
[Result "1-0"]
[Round "6"]
[TimeControl "180+1"]
[Date "2023.08.22"]
[WhiteClock "0:00:15"]
[BlackClock "0:00:00"]
[Board "42"]

1. d4 {[%clk 0:03:00]}  Nf6 {[%clk 0:02:59]} 2. c4 {[%clk 0:03:00]}  g6 {[%clk 0:03:00]} 3. Nc3 {[%clk 0:03:01]}  d5 {[%clk 0:03:00]} 4. Nf3 {[%clk 0:02:59]}  Bg7 {[%clk 0:03:00]} 5. Bg5 {[%clk 0:03:00]}  Ne4 {[%clk 0:03:00]} 6. cxd5 {[%clk 0:03:01]}  Nxg5 {[%clk 0:03:00]} 7. Nxg5 {[%clk 0:03:01]}  e6 {[%clk 0:03:01]} 8. Qd2 {[%clk 0:03:02]}  exd5 {[%clk 0:03:02]} 9. Qe3+ {[%clk 0:03:03]}  Kf8 {[%clk 0:03:03]} 10. Qf4 {[%clk 0:03:03]}  Bf6 {[%clk 0:03:03]} 11. h4 {[%clk 0:03:04]}  c6 {[%clk 0:03:03]} 12. O-O-O {[%clk 0:03:03]}  h6 {[%clk 0:03:03]} 13. Nf3 {[%clk 0:03:03]}  Kg7 {[%clk 0:03:03]} 14. e4 {[%clk 0:03:03]}  dxe4 {[%clk 0:02:46]} 15. Ne5 {[%clk 0:03:03]}  Be6 {[%clk 0:02:17]} 16. Nxe4 {[%clk 0:03:02]}  Nd7 {[%clk 0:02:11]} 17. Nxd7 {[%clk 0:02:40]}  Bxd7 {[%clk 0:02:10]} 18. Bc4 {[%clk 0:02:40]}  Rf8 {[%clk 0:01:15]} 19. g4 {[%clk 0:02:34]}  g5 {[%clk 0:00:56]} 20. Qh2 {[%clk 0:02:03]}  Rh8 {[%clk 0:00:34]} 21. hxg5 {[%clk 0:01:37]}  hxg5 {[%clk 0:00:29]} 22. Qg3 {[%clk 0:01:15]}  Qe7 {[%clk 0:00:27]} 23. Rhe1 {[%clk 0:01:08]}  Be6 {[%clk 0:00:07]} 24. Nc5 {[%clk 0:00:56]}  Bxc4 {[%clk 0:00:05]} 25. Rxe7 {[%clk 0:00:56]}  Bxe7 {[%clk 0:00:06]} 26. Ne4 {[%clk 0:00:44]}  Rae8 {[%clk 0:00:02]} 27. Qe5+ {[%clk 0:00:43]}  Kg6 {[%clk 0:00:03]} 28. Qf5+ {[%clk 0:00:43]}  Kg7 {[%clk 0:00:03]} 29. Nxg5 {[%clk 0:00:40]}  Bd5 {[%clk 0:00:02]} 30. f3 {[%clk 0:00:31]}  Bf6 {[%clk 0:00:02]} 31. Ne4 {[%clk 0:00:31]}  Bxe4 {[%clk 0:00:02]} 32. fxe4 {[%clk 0:00:31]}  Re6 {[%clk 0:00:02]} 33. e5 {[%clk 0:00:31]}  Bd8 {[%clk 0:00:02]} 34. Rf1 {[%clk 0:00:31]}  Rf8 {[%clk 0:00:03]} 35. Rh1 {[%clk 0:00:30]}  Rg6 {[%clk 0:00:03]} 36. Qh5 {[%clk 0:00:28]}  Bg5+ {[%clk 0:00:04]} 37. Kc2 {[%clk 0:00:28]}  Rg8 {[%clk 0:00:04]} 38. Rf1 {[%clk 0:00:23]}  Rf8 {[%clk 0:00:03]} 39. Rf5 {[%clk 0:00:20]}  Rh8 {[%clk 0:00:03]} 40. Rxf7+ {[%clk 0:00:18]}  Kxf7 {[%clk 0:00:03]} 41. Qxh8 {[%clk 0:00:18]}  Rg7 {[%clk 0:00:03]} 42. Qb8 {[%clk 0:00:17]}  Kg6 {[%clk 0:00:03]} 43. Qxa7 {[%clk 0:00:15]}  Re7 {[%clk 0:00:02]} 44. Qb8 {[%clk 0:00:15]}  Kg7 {[%clk 0:00:02]} 45. Qc8 {[%clk 0:00:15]}  Rf7 {[%clk 0:00:02]} 46. b4 {[%clk 0:00:14]}  Kg6 {[%clk 0:00:02]} 47. a4 {[%clk 0:00:14]}  Kg7 {[%clk 0:00:03]} 48. b5 {[%clk 0:00:15]}  cxb5 {[%clk 0:00:02]} 49. axb5 {[%clk 0:00:16]}  Re7 {[%clk 0:00:03]} 50. Kd3 {[%clk 0:00:15]}  Kh6 {[%clk 0:00:03]} 51. Ke4 {[%clk 0:00:15]}  Kg6 {[%clk 0:00:04]} 52. Qg8+ {[%clk 0:00:15]}  Rg7 {[%clk 0:00:04]} 53. Qe6+ {[%clk 0:00:15]}  Kh7 {[%clk 0:00:04]} 54. d5 {[%clk 0:00:16]}  Re7 {[%clk 0:00:02]} 55. Qf5+ {[%clk 0:00:16]}  Kh6 {[%clk 0:00:03]} 56. d6 {[%clk 0:00:17]}  Rg7 {[%clk 0:00:03]} 57. e6 {[%clk 0:00:16]}  Rg6 {[%clk 0:00:02]} 58. e7 {[%clk 0:00:16]}  Rg8 {[%clk 0:00:00]} 59. Qe6+ {[%clk 0:00:15]} 1-0


[Site "https://www.chess.com"]

[Event "Titled Tuesday Blitz August 22 Early 2023"]
[White "Maltsevskaya, Aleksandra"]
[Black "Lenderman, Aleksandr"]
[WhiteFideId "24174041"]
[BlackFideId "2021285"]
[WhiteElo "2632"]
[BlackElo "2856"]
[Result "1-0"]
[Round "6"]
[TimeControl "180+1"]
[Date "2023.08.22"]
[WhiteClock "0:02:27"]
[BlackClock "0:02:06"]
[Board "43"]

1. e4 {[%clk 0:02:52]}  d5 {[%clk 0:02:57]} 2. exd5 {[%clk 0:02:51]}  Nf6 {[%clk 0:02:57]} 3. Nc3 {[%clk 0:02:51]}  Nxd5 {[%clk 0:02:55]} 4. Nf3 {[%clk 0:02:52]}  Bg4 {[%clk 0:02:53]} 5. g3 {[%clk 0:02:52]}  Nxc3 {[%clk 0:02:52]} 6. bxc3 {[%clk 0:02:52]}  Qd5 {[%clk 0:02:52]} 7. Bg2 {[%clk 0:02:50]}  Qe4+ {[%clk 0:02:49]} 8. Kf1 {[%clk 0:02:50]}  Nc6 {[%clk 0:02:49]} 9. h3 {[%clk 0:02:50]}  Bh5 {[%clk 0:02:49]} 10. g4 {[%clk 0:02:43]}  Bg6 {[%clk 0:02:49]} 11. Nd4 {[%clk 0:02:43]}  Nxd4 {[%clk 0:02:16]} 12. Bxe4 {[%clk 0:02:42]}  Bxe4 {[%clk 0:02:17]} 13. cxd4 {[%clk 0:02:39]}  Bxh1 {[%clk 0:02:17]} 14. f3 {[%clk 0:02:39]}  O-O-O {[%clk 0:02:17]} 15. Kf2 {[%clk 0:02:35]}  Rxd4 {[%clk 0:02:15]} 16. Qxh1 {[%clk 0:02:34]}  e5 {[%clk 0:02:15]} 17. d3 {[%clk 0:02:32]}  Bd6 {[%clk 0:02:12]} 18. Be3 {[%clk 0:02:32]}  Ra4 {[%clk 0:02:13]} 19. Qb1 {[%clk 0:02:30]}  f6 {[%clk 0:02:06]} 20. Qb3 {[%clk 0:02:27]} 1-0


[Site "https://www.chess.com"]